bitfinex/quotes_BTCUSD_20251221
["timestamp","ask_amount","ask_price","bid_price","bid_amount"]
[1766300689687,0.01133645,88227.0,88212.0,0.01701632]
[1766300690337,0.01133645,88227.0,88213.0,0.01133619]
[1766300696319,0.01133645,88227.0,88214.0,0.01133606]
[1766300696524,0.01133645,88227.0,88213.0,0.01133619]
[1766300697334,0.01133645,88227.0,88214.0,0.01133606]
[1766300697554,0.01133645,88227.0,88217.0,0.31703174]
[1766300710614,0.0112231,88227.0,88217.0,0.31703174]
[1766300712198,0.06789535,88227.0,88217.0,0.31703174]
[1766300712463,0.01133491,88223.0,88217.0,0.31648274]
[1766300712686,0.01133491,88223.0,88213.0,0.31703174]
[1766300714458,0.06800948,88223.0,88213.0,0.31703174]
[1766300714658,0.01133504,88222.0,88213.0,0.31703174]
[1766300718368,0.01133529,88220.0,88212.0,0.32271174]
[1766300718570,0.01133516,88221.0,88212.0,0.32271174]
[1766300718811,0.01133516,88221.0,88212.0,0.32221652]
[1766300719578,0.01133504,88222.0,88212.0,0.32221652]
[1766300719790,0.01133491,88223.0,88212.0,0.32221652]
[1766300721658,0.01133491,88223.0,88213.0,0.32271174]
[1766300721972,0.01133491,88223.0,88213.0,0.00603831]
[1766300722357,0.01133504,88222.0,88213.0,0.00603831]
[1766300722596,0.02266956,88226.0,88213.0,0.00603831]
[1766300722797,0.01133478,88224.0,88213.0,0.00603831]
[1766300724528,0.01133504,88222.0,88213.0,0.00603831]
[1766300724917,0.01133491,88223.0,88213.0,0.00603831]
[1766300725066,0.01133491,88223.0,88214.0,0.00568]
[1766300726077,0.01133478,88224.0,88214.0,0.00568]
[1766300726509,0.01133491,88223.0,88214.0,0.00568]
[1766300726705,0.01133478,88224.0,88214.0,0.00568]
[1766300727052,0.01133491,88223.0,88214.0,0.01928328]
[1766300728233,0.01133491,88223.0,88214.0,0.00568]
[1766300728432,0.01133478,88224.0,88214.0,0.00568]
[1766300728658,0.01133465,88225.0,88214.0,0.01928328]
[1766300728877,0.01133452,88226.0,88214.0,0.01928328]
[1766300731161,0.01133465,88225.0,88214.0,0.01928328]
[1766300731365,0.01133478,88224.0,88214.0,0.01928328]
[1766300731603,0.01133491,88223.0,88214.0,0.00568]
[1766300732010,0.01133465,88225.0,88214.0,0.00568]
[1766300733427,0.01133478,88224.0,88214.0,0.00568]
[1766300734118,0.01133465,88225.0,88214.0,0.00536]
[1766300736463,0.01133478,88224.0,88214.0,0.00536]
[1766300736576,0.01133465,88225.0,88214.0,0.00536]
[1766300737624,0.01133478,88224.0,88214.0,0.00536]
[1766300738305,0.02266943,88226.0,88214.0,0.00536]
[1766300738768,0.01133465,88225.0,88214.0,0.00536]
[1766300739490,0.01133478,88224.0,88214.0,0.00536]
[1766300742333,0.01133465,88225.0,88214.0,0.00536]
[1766300742945,0.02266943,88226.0,88214.0,0.00536]
[1766300744519,0.02266943,88226.0,88214.0,0.01896328]
[1766300746247,0.01133491,88226.0,88216.0,0.31703174]
[1766300746474,0.01701427,88228.0,88217.0,0.01360282]
[1766300746682,0.01701427,88228.0,88216.0,0.31703174]
[1766300747045,0.00568,88228.0,88216.0,0.31703174]
[1766300747475,0.01133439,88227.0,88218.0,0.31703174]
[1766300747678,0.01133439,88227.0,88214.0,0.00536]
[1766300748517,0.01133439,88227.0,88215.0,0.01360312]
[1766300748849,0.01133452,88226.0,88215.0,0.01360312]
[1766300750297,0.01133465,88225.0,88215.0,0.01360312]
[1766300750474,0.01133491,88223.0,88214.0,0.00536]
[1766300750899,0.01133478,88224.0,88214.0,0.00536]
[1766300755611,0.01133491,88223.0,88214.0,0.00536]
[1766300756507,0.01133478,88224.0,88214.0,0.00536]
[1766300756668,0.01133491,88223.0,88214.0,0.00536]
[1766300757275,0.01133504,88222.0,88214.0,0.00536]
[1766300758301,0.01133478,88224.0,88214.0,0.00536]
[1766300758668,0.01133491,88223.0,88214.0,0.00536]
[1766300758869,0.01133478,88224.0,88214.0,0.00536]
[1766300759325,0.0680093,88224.0,88214.0,0.00536]
[1766300759547,0.01133504,88222.0,88214.0,0.00536]
[1766300759775,0.01133491,88223.0,88214.0,0.00536]
[1766300760273,0.01133504,88222.0,88214.0,0.00536]
[1766300760492,0.01133491,88223.0,88214.0,0.00536]
[1766300760690,0.01133504,88222.0,88214.0,0.00536]
[1766300761258,0.01133504,88222.0,88213.0,0.00035831]
[1766300761460,0.01133504,88222.0,88214.0,0.00568]
[1766300762640,0.01133491,88223.0,88214.0,0.00568]
[1766300762819,0.01133478,88224.0,88214.0,0.00568]
[1766300765872,0.01133491,88223.0,88214.0,0.00568]
[1766300766749,0.01133504,88222.0,88214.0,0.00568]
[1766300767115,0.01133491,88223.0,88214.0,0.00568]
[1766300769514,0.01133478,88224.0,88214.0,0.00568]
[1766300769636,0.01133491,88223.0,88214.0,0.00568]
[1766300770272,0.01133504,88222.0,88214.0,0.00568]
[1766300770474,0.01133491,88223.0,88214.0,0.00568]
[1766300771764,0.01133465,88225.0,88214.0,0.00568]
[1766300773171,0.01133478,88224.0,88214.0,0.00568]
[1766300773831,0.01133465,88225.0,88214.0,0.00568]
[1766300774453,0.01133452,88226.0,88214.0,0.00568]
[1766300777234,0.12041,88227.0,88214.0,0.00568]
[1766300777448,0.01133439,88227.0,88214.0,0.00568]
[1766300777645,0.01701427,88228.0,88214.0,0.00568]
[1766300777646,0.00568,88228.0,88214.0,0.00568]
[1766300778305,0.00568,88228.0,88214.0,0.01701606]
[1766300778898,0.00568,88228.0,88214.0,0.00568]
[1766300779481,0.00568,88228.0,88214.0,0.01701606]
[1766300780407,0.00568,88228.0,88214.0,0.00568]
[1766300782509,0.00568,88228.0,88214.0,0.01701606]
[1766300782711,0.00568,88228.0,88214.0,0.00568]
[1766300783372,0.00568,88228.0,88214.0,0.01701606]
[1766300783920,0.00568,88228.0,88214.0,0.00568]
[1766300784563,0.00568,88228.0,88214.0,0.01701606]
[1766300785844,0.00568,88228.0,88214.0,0.00568]
[1766300788611,0.00568,88228.0,88214.0,0.01701606]
[1766300789115,0.00568,88228.0,88214.0,0.00568]
[1766300793044,0.00568,88228.0,88214.0,0.01701606]
[1766300793473,0.00568,88228.0,88214.0,0.00568]
[1766300794676,0.01133439,88227.0,88214.0,0.00568]
[1766300794884,0.01701427,88228.0,88214.0,0.00568]
[1766300800516,0.00568,88228.0,88214.0,0.00568]
[1766300800947,0.00568,88227.0,88214.0,0.00568]
[1766300801933,0.00568,88227.0,88214.0,0.01701606]
[1766300802150,0.00568,88227.0,88214.0,0.00568]
[1766300802351,0.00568,88227.0,88214.0,0.01701606]
[1766300802681,0.00568,88227.0,88214.0,0.00568]
[1766300803922,0.01701439,88227.0,88214.0,0.00568]
[1766300804900,0.00568,88227.0,88214.0,0.00568]
[1766300807653,0.00568,88228.0,88214.0,0.00568]
[1766300809122,0.00228,88228.0,88214.0,0.01701606]
[1766300813635,0.00228,88228.0,88215.0,0.01133594]
[1766300813854,0.00228,88228.0,88214.0,0.01701606]
[1766300818737,0.00228,88228.0,88215.0,0.01133594]
[1766300819308,0.00228,88228.0,88214.0,0.01701606]
[1766300820890,0.00228,88228.0,88215.0,0.01133594]
[1766300821180,0.00228,88228.0,88214.0,0.01701606]
[1766300822265,0.01133632,88231.0,88221.0,0.01133516]
[1766300822480,0.00568,88239.0,88228.0,0.000549]
[1766300822676,0.00568,88239.0,88228.0,0.31704932]
[1766300823290,0.00568,88239.0,88229.0,0.0340547]
[1766300824528,0.00568,88239.0,88229.0,0.35110402]
[1766300824775,0.01701285,88239.0,88229.0,0.0340547]
[1766300824976,0.01701285,88239.0,88228.0,0.00568]
[1766300825160,0.01701285,88239.0,88229.0,0.0340547]
[1766300825983,0.00568,88239.0,88229.0,0.0340547]
[1766300830387,0.01701285,88239.0,88229.0,0.0340547]
[1766300831975,0.01133298,88238.0,88229.0,0.0340547]
[1766300832875,0.01701285,88239.0,88229.0,0.0340547]
[1766300833912,0.01133298,88238.0,88229.0,0.0340547]
[1766300834309,0.01701285,88239.0,88229.0,0.0340547]
[1766300835326,0.01133298,88238.0,88229.0,0.0340547]
[1766300836406,0.01701285,88239.0,88229.0,0.0340547]
[1766300837600,0.00568,88239.0,88229.0,0.0340547]
[1766300838005,0.01701285,88239.0,88229.0,0.0340547]
[1766300839820,0.00568,88239.0,88229.0,0.0340547]
[1766300841219,0.01133298,88238.0,88229.0,0.0340547]
[1766300842619,0.01701285,88239.0,88229.0,0.0340547]
[1766300843521,0.01133298,88238.0,88229.0,0.0340547]
[1766300843952,0.01701285,88239.0,88229.0,0.0340547]
[1766300844177,0.00568,88239.0,88229.0,0.0340547]
[1766300845194,0.01133298,88238.0,88229.0,0.0340547]
[1766300845429,0.00568,88239.0,88229.0,0.0340547]
[1766300845976,0.01133298,88238.0,88229.0,0.0340547]
[1766300846784,0.01701285,88239.0,88229.0,0.0340547]
[1766300846990,0.00055,88229.0,88225.0,0.00568]
[1766300847264,0.12304,88234.0,88226.0,0.0340547]
[1766300851573,0.12304,88234.0,88224.0,0.00568]
[1766300852515,0.12304,88234.0,88224.0,0.03973694]
[1766300855762,0.01133362,88233.0,88224.0,0.03973694]
[1766300856084,0.01133491,88223.0,88215.0,0.06130335]
[1766300856284,0.11776,88223.0,88219.0,0.03406015]
[1766300856489,0.12909491,88223.0,88213.0,2.631e-05]
[1766300856703,0.11776,88223.0,88213.0,2.631e-05]
[1766300856918,0.11776,88223.0,88213.0,0.03408646]
[1766300857480,0.11776,88223.0,88213.0,2.631e-05]
[1766300866451,0.01133555,88218.0,88213.0,2.631e-05]
[1766300866654,0.01133568,88217.0,88213.0,2.631e-05]
[1766300866833,0.01133542,88219.0,88213.0,2.631e-05]
[1766300867035,0.06801186,88220.0,88213.0,2.631e-05]
[1766300867231,0.01133529,88220.0,88213.0,2.631e-05]
[1766300867461,0.29716516,88221.0,88213.0,2.631e-05]
[1766300867628,0.28583,88221.0,88213.0,2.631e-05]
[1766300869809,0.16807,88221.0,88213.0,2.631e-05]
[1766300872182,0.17940516,88221.0,88213.0,2.631e-05]
[1766300872361,0.16807,88221.0,88213.0,2.631e-05]
[1766300880250,0.167521,88221.0,88213.0,2.631e-05]
[1766300881084,0.00568,88224.0,88213.0,2.631e-05]
[1766300881859,0.01133491,88223.0,88213.0,2.631e-05]
[1766300882058,0.01133491,88223.0,88214.0,0.03406116]
[1766300882663,0.01133504,88222.0,88214.0,0.03406116]
[1766300882879,0.01133516,88221.0,88214.0,0.03406116]
[1766300883108,0.01133491,88223.0,88214.0,0.03406116]
[1766300883620,0.01701478,88224.0,88214.0,0.03406116]
[1766300884045,0.00568,88224.0,88214.0,0.03406116]
[1766300885465,0.01133491,88223.0,88214.0,0.03406116]
[1766300887440,0.01133504,88222.0,88214.0,0.03406116]
[1766300888453,0.01133491,88223.0,88214.0,0.03406116]
[1766300889065,0.01133504,88222.0,88214.0,0.03406116]
[1766300889641,0.01133491,88223.0,88214.0,0.03406116]
[1766300890471,0.01701478,88224.0,88214.0,0.03406116]
[1766300890848,0.00568,88224.0,88214.0,0.03406116]
[1766300891263,0.01701478,88224.0,88214.0,0.03406116]
[1766300892974,0.01133491,88223.0,88214.0,0.03406116]
[1766300893175,0.01701478,88224.0,88214.0,0.03406116]
[1766300894179,0.00568,88224.0,88214.0,0.03406116]
[1766300894491,0.01701478,88224.0,88214.0,0.03406116]
[1766300894917,0.00568,88224.0,88214.0,0.03406116]
[1766300895363,0.01701478,88224.0,88214.0,0.03406116]
[1766300895568,0.00568,88224.0,88214.0,0.03406116]
[1766300896169,0.01701478,88224.0,88214.0,0.03406116]
[1766300897546,0.01133491,88223.0,88214.0,0.03406116]
[1766300899917,0.01701478,88224.0,88214.0,0.03406116]
[1766300900371,0.00568,88224.0,88214.0,0.03406116]
[1766300901045,0.01701478,88224.0,88214.0,0.03406116]
[1766300901432,0.00568,88224.0,88214.0,0.03406116]
[1766300902351,0.01701478,88224.0,88214.0,0.03406116]
[1766300905455,0.01133491,88223.0,88214.0,0.03406116]
[1766300907043,0.01701478,88224.0,88214.0,0.03406116]
[1766300907444,0.01133491,88223.0,88214.0,0.03406116]
[1766300908702,0.01701478,88224.0,88214.0,0.03406116]
[1766300911302,0.01133491,88223.0,88214.0,0.03406116]
[1766300912161,0.01701478,88224.0,88214.0,0.03406116]
[1766300912351,0.01133491,88223.0,88214.0,0.03406116]
[1766300913983,0.01701478,88224.0,88214.0,0.03406116]
[1766300917148,0.01133491,88223.0,88214.0,0.03406116]
[1766300917344,0.11866,88221.0,88214.0,0.03406116]
[1766300941559,0.17681,88222.0,88214.0,0.03406116]
[1766300941778,0.01133311,88237.0,88221.0,0.00055]
[1766300941951,0.00568,88235.0,88222.0,0.00568]
[1766300942339,0.01701337,88235.0,88222.0,0.00568]
[1766300942545,0.00568,88235.0,88223.0,0.01133311]
[1766300947309,0.01701337,88235.0,88223.0,0.01133311]
[1766300947522,0.00568,88235.0,88223.0,0.01133311]
[1766300957134,0.00568,88235.0,88223.0,0.02266802]
[1766300957532,0.00568,88235.0,88223.0,0.01133311]
[1766300963823,0.00568,88235.0,88223.0,0.02266802]
[1766300966150,0.00568,88235.0,88223.0,0.01133311]
[1766300973727,0.00568,88235.0,88223.0,0.02266802]
[1766300974078,0.00568,88235.0,88224.0,0.01133478]
[1766300975176,0.00568,88235.0,88223.0,0.01133311]
[1766300976261,0.00568,88235.0,88223.0,0.02266802]
[1766300976426,0.00568,88235.0,88223.0,0.01133311]
[1766300976829,0.00568,88235.0,88223.0,0.02266802]
[1766300977138,0.00568,88235.0,88223.0,0.01133311]
[1766300980232,0.00568,88235.0,88224.0,0.05220033]
[1766300980743,0.00568,88235.0,88225.0,0.01133465]
[1766300980941,0.00568,88234.0,88226.0,0.01133452]
[1766300981350,0.00568,88234.0,88223.0,0.01133311]
[1766300981551,0.00568,88234.0,88223.0,0.02266802]
[1766300981931,0.00568,88234.0,88223.0,0.01133311]
[1766300982334,0.00568,88234.0,88223.0,0.02266802]
[1766300983326,0.00568,88234.0,88224.0,0.01133478]
[1766300985315,0.00568,88234.0,88226.0,0.03064442]
[1766300987262,0.00568,88234.0,88223.0,0.02266802]
[1766300988843,0.00568,88234.0,88226.0,0.03064368]
[1766300990506,0.00568,88234.0,88226.0,0.03064338]
[1766300991021,0.00568,88234.0,88223.0,0.01133311]
[1766300991022,0.00568,88234.0,88228.0,0.03064338]
[1766300991384,0.00568,88234.0,88223.0,0.05219866]
[1766300991601,0.00568,88234.0,88223.0,0.06353357]
[1766300993909,0.00568,88234.0,88223.0,0.05219866]
[1766300995356,0.00568,88234.0,88228.0,0.03064334]
[1766301002220,0.00513,88234.0,88228.0,0.03064334]
[1766301005425,0.00513,88234.0,88229.0,0.03064334]
[1766301011944,0.00513,88234.0,88229.0,0.04197658]
[1766301017532,0.00513,88234.0,88229.0,0.04142758]
[1766301018780,0.00513,88234.0,88229.0,0.01133324]
[1766301020879,0.11847,88234.0,88229.0,0.01133324]
[1766301021678,0.12980349,88234.0,88229.0,0.01133324]
[1766301021856,0.11847,88234.0,88229.0,0.01133324]
[1766301022957,0.11847,88234.0,88224.0,0.04086555]
[1766301023293,0.11847,88234.0,88225.0,0.0340583]
[1766301030480,0.17128,88233.0,88225.0,0.0340583]
[1766301030680,0.28515,88231.0,88225.0,0.0340583]
[1766301030936,0.11387,88230.0,88225.0,0.0340583]
[1766301031144,0.01646349,88234.0,88217.0,0.06130335]
[1766301031145,0.00055,88225.0,88217.0,0.06130335]
[1766301031299,0.00055,88225.0,88219.0,0.03406]
[1766301031300,0.12520465,88225.0,88219.0,0.03406]
[1766301031486,0.12520465,88225.0,88218.0,0.00568]
[1766301031693,0.01133478,88224.0,88218.0,0.00568]
[1766301032127,0.12520465,88225.0,88218.0,0.00568]
[1766301032366,0.01133478,88224.0,88218.0,0.00568]
[1766301032578,0.11387,88225.0,88218.0,0.00568]
[1766301034363,0.12520465,88225.0,88218.0,0.00568]
[1766301034559,0.12520465,88225.0,88217.0,0.03406039]
[1766301035566,0.11387,88225.0,88217.0,0.03406039]
[1766301036228,0.12520465,88225.0,88217.0,0.03406039]
[1766301036954,0.11387,88225.0,88217.0,0.03406039]
[1766301039068,0.12520465,88225.0,88217.0,0.03406039]
[1766301041735,0.11387,88225.0,88217.0,0.03406039]
[1766301044506,0.12520465,88225.0,88217.0,0.03406039]
[1766301044809,0.11387,88225.0,88217.0,0.03406039]
[1766301045849,0.12520465,88225.0,88217.0,0.03406039]
[1766301046164,0.19034478,88224.0,88217.0,0.03406039]
[1766301046367,0.11786,88219.0,88213.0,0.00570631]
[1766301048283,0.11786,88219.0,88213.0,0.00231631]
[1766301050144,0.117311,88219.0,88213.0,0.00231631]
[1766301050926,0.17901,88220.0,88213.0,0.00231631]
[1766301051091,0.01133696,88219.0,88213.0,0.00231631]
[1766301051699,0.01078696,88219.0,88213.0,0.00231631]
[1766301066241,0.00568,88224.0,88213.0,0.00231631]
[1766301066576,0.03406185,88223.0,88213.0,0.00231631]
[1766301073462,0.03406185,88223.0,88213.0,0.0136525]
[1766301073657,0.03406185,88223.0,88214.0,0.01133606]
[1766301073801,0.03406185,88223.0,88218.0,0.01133555]
[1766301074021,0.00568,88224.0,88218.0,0.01133555]
[1766301074239,0.00568,88224.0,88219.0,0.01133542]
[1766301074437,0.00568,88224.0,88217.0,0.01133568]
[1766301074634,0.00568,88224.0,88216.0,0.01133581]
[1766301074849,0.00568,88224.0,88217.0,0.01133568]
[1766301075810,0.00568,88224.0,88216.0,0.01133581]
[1766301076647,0.00568,88224.0,88214.0,0.02267174]
[1766301076828,0.00568,88224.0,88215.0,0.01133594]
[1766301077386,0.00568,88224.0,88216.0,0.01133581]
[1766301077832,0.00568,88224.0,88215.0,0.01133594]
[1766301079262,0.00568,88224.0,88214.0,0.02267174]
[1766301079652,0.00568,88224.0,88216.0,0.01133581]
[1766301079806,0.00568,88224.0,88215.0,0.01133594]
[1766301080669,0.00568,88224.0,88216.0,0.01133581]
[1766301083105,0.00568,88224.0,88215.0,0.01133594]
[1766301083944,0.00568,88224.0,88216.0,0.01133581]
[1766301084169,0.00568,88224.0,88215.0,0.01133594]
[1766301084955,0.00568,88224.0,88217.0,0.01133568]
[1766301085521,0.00568,88224.0,88216.0,0.01133581]
[1766301086162,0.00568,88224.0,88215.0,0.01133594]
[1766301089057,0.00568,88224.0,88214.0,0.02267174]
[1766301089275,0.00568,88224.0,88215.0,0.01133594]
[1766301089592,0.00568,88224.0,88214.0,0.02267174]
[1766301090250,0.00568,88224.0,88215.0,0.01133594]
[1766301090411,0.00568,88224.0,88216.0,0.01133581]
[1766301092046,0.00568,88224.0,88214.0,0.02267174]
[1766301092347,0.00568,88224.0,88215.0,0.01133594]
[1766301094353,0.00568,88224.0,88214.0,0.02267174]
[1766301094555,0.00568,88224.0,88216.0,0.01133581]
[1766301094755,0.00568,88224.0,88215.0,0.01133594]
[1766301095760,0.00568,88224.0,88216.0,0.01133581]
[1766301095963,0.11574,88228.0,88216.0,0.01133581]
[1766301096825,0.11574,88228.0,88215.0,0.01133594]
[1766301097140,0.11574,88228.0,88216.0,0.01133581]
[1766301098391,0.11574,88228.0,88214.0,0.02267174]
[1766301100611,0.11574,88228.0,88214.0,0.01133568]
[1766301100730,0.11574,88228.0,88214.0,0.01078668]
[1766301100937,0.18215,88228.0,88214.0,0.01078668]
[1766301101143,0.11574,88227.0,88214.0,0.01078668]
[1766301102852,0.11574,88227.0,88214.0,0.02212274]
[1766301103252,0.11574,88227.0,88215.0,0.01133594]
[1766301104070,0.11574,88227.0,88214.0,0.02212274]
[1766301104282,0.11574,88227.0,88214.0,0.01078668]
[1766301112070,0.01133632,88230.0,88214.0,0.01078668]
[1766301112319,0.12142,88230.0,88220.0,0.31705545]
[1766301112532,0.11574,88229.0,88220.0,0.31705545]
[1766301112740,0.11574,88228.0,88216.0,0.01133581]
[1766301112940,0.000549,88220.0,88216.0,0.01133581]
[1766301113125,0.11574,88228.0,88217.0,0.0340593]
[1766301116830,0.11574,88228.0,88218.0,0.00568]
[1766301127454,0.11574,88228.0,88218.0,0.0397393]
[1766301128709,0.01133439,88227.0,88218.0,0.0397393]
[1766301129011,0.18826494,88228.0,88218.0,0.0340593]
[1766301129222,0.18826494,88228.0,88217.0,0.00568]
[1766301129378,0.18862319,88228.0,88217.0,0.00568]
[1766301130177,0.18862319,88228.0,88217.0,0.01701568]
[1766301130587,0.18862319,88228.0,88217.0,0.00568]
[1766301130792,0.18862319,88228.0,88217.0,0.01701568]
[1766301131171,0.18862319,88228.0,88218.0,0.01133555]
[1766301132030,0.12274,88227.0,88217.0,0.00568]
[1766301132458,0.12274,88227.0,88217.0,0.01701568]
[1766301132656,0.12274,88227.0,88217.0,0.00568]
[1766301137590,0.12274,88227.0,88217.0,0.01701568]
[1766301137746,0.29514,88227.0,88218.0,0.01133555]
[1766301137944,0.29514,88227.0,88217.0,0.00568]
[1766301139752,0.29514,88227.0,88217.0,0.01701568]
[1766301140306,0.29514,88227.0,88218.0,0.01133555]
[1766301142988,0.29514,88227.0,88219.0,0.01133542]
[1766301143152,0.29514,88227.0,88218.0,0.01133555]
[1766301143706,0.29514,88227.0,88217.0,0.01701568]
[1766301143907,0.29514,88227.0,88218.0,0.01133555]
[1766301144269,0.29514,88227.0,88217.0,0.00568]
[1766301176363,0.29175,88227.0,88217.0,0.00568]
[1766301179288,0.29175,88227.0,88217.0,0.03974131]
[1766301180622,0.29175,88227.0,88218.0,0.01133555]
[1766301180845,0.29175,88227.0,88217.0,0.03974131]
[1766301182304,0.29175,88227.0,88218.0,0.05667777]
[1766301182553,0.00568,88231.0,88218.0,0.01133555]
[1766301182761,0.00568276,88231.0,88219.0,0.01133542]
[1766301183004,0.00568276,88231.0,88219.0,0.03406081]
[1766301183222,0.00568276,88231.0,88219.0,0.04539623]
[1766301183406,0.00568276,88231.0,88219.0,0.03406081]
[1766301183606,0.00568276,88231.0,88218.0,0.01133555]
[1766301183820,0.00568276,88231.0,88217.0,0.33408416]
[1766301184053,0.00568276,88231.0,88219.0,0.03406081]
[1766301187530,0.00568276,88231.0,88220.0,0.31702746]
[1766301188362,0.00568276,88231.0,88220.0,0.3170283]
[1766301190103,0.00568276,88231.0,88218.0,0.03406081]
[1766301190280,0.00568276,88231.0,88220.0,0.3170283]
[1766301192142,0.01133401,88230.0,88220.0,0.3170283]
[1766301193076,0.01133414,88229.0,88220.0,0.3170283]
[1766301193293,0.01133401,88230.0,88220.0,0.3170283]
[1766301193505,0.01133414,88229.0,88220.0,0.3170283]
[1766301193904,0.01133401,88230.0,88220.0,0.3170283]
[1766301194306,0.01701664,88231.0,88220.0,0.3170283]
[1766301194507,0.01133401,88230.0,88220.0,0.3170283]
[1766301196765,0.01133414,88229.0,88220.0,0.3170283]
[1766301197914,0.01133401,88230.0,88220.0,0.3170283]
[1766301201891,0.01133414,88229.0,88220.0,0.3170283]
[1766301203692,0.01133401,88230.0,88220.0,0.3170283]
[1766301208959,0.01133414,88229.0,88220.0,0.3170283]
[1766301209160,0.01133401,88230.0,88220.0,0.3170283]
[1766301210070,0.01133414,88229.0,88220.0,0.3170283]
[1766301210294,0.01133414,88229.0,88220.0,0.33404494]
[1766301213069,0.01133401,88230.0,88220.0,0.33404494]
[1766301223785,0.01701664,88231.0,88220.0,0.33404494]
[1766301224995,0.01133401,88230.0,88220.0,0.33404494]
[1766301227502,0.01133401,88230.0,88220.0,0.33405039]
[1766301228540,0.01701664,88231.0,88220.0,0.33405039]
[1766301228914,0.01133401,88230.0,88220.0,0.33405039]
[1766301229345,0.01133414,88229.0,88220.0,0.33405039]
[1766301232752,0.01133414,88229.0,88220.0,0.01701664]
[1766301233174,0.01133401,88230.0,88220.0,0.01701664]
[1766301233374,0.14146664,88231.0,88220.0,0.01701664]
[1766301233899,0.01133401,88230.0,88220.0,0.01701664]
[1766301235170,0.14146664,88231.0,88220.0,0.01701664]
[1766301236621,0.01133401,88230.0,88220.0,0.01701664]
[1766301237081,0.01133414,88229.0,88220.0,0.01701664]
[1766301237274,0.01133401,88230.0,88220.0,0.01701664]
[1766301244461,0.01133414,88229.0,88220.0,0.01701664]
[1766301245771,0.01133427,88228.0,88220.0,0.01701664]
[1766301246885,0.01133439,88227.0,88220.0,0.01701664]
[1766301249653,0.01133427,88228.0,88220.0,0.01701664]
[1766301252391,0.01133439,88227.0,88220.0,0.01701664]
[1766301252798,0.01133452,88226.0,88220.0,0.01646764]
[1766301253077,0.29893276,88231.0,88220.0,0.01646764]
[1766301253078,0.12096,88230.0,88220.0,0.01646764]
[1766301253485,0.01133414,88229.0,88220.0,0.01646764]
[1766301254522,0.01133439,88227.0,88220.0,0.01646764]
[1766301254880,0.01133427,88228.0,88220.0,0.01646764]
[1766301258956,0.01133439,88227.0,88220.0,0.01646764]
[1766301259133,0.01133427,88228.0,88220.0,0.01646764]
[1766301259323,0.01133439,88227.0,88220.0,0.01646764]
[1766301259966,0.01133427,88228.0,88220.0,0.01646764]
[1766301260572,0.01133439,88227.0,88220.0,0.01646764]
[1766301260798,0.13229439,88227.0,88220.0,0.01646764]
[1766301261616,0.12096,88227.0,88220.0,0.01646764]
[1766301268649,0.13229439,88227.0,88220.0,0.01646764]
[1766301268845,0.12096,88227.0,88220.0,0.01646764]
[1766301272631,0.11546,88226.0,88220.0,0.01646764]
[1766301276140,0.12247,88225.0,88220.0,0.01646764]
[1766301293543,0.12247,88225.0,88220.0,0.01060264]
[1766301300953,0.12247,88225.0,88217.0,0.00568]
[1766301314442,0.12247,88225.0,88217.0,0.01701568]
[1766301314590,0.12247,88225.0,88218.0,0.01133555]
[1766301314785,0.12247,88225.0,88217.0,0.01701568]
[1766301317619,0.12247,88225.0,88217.0,0.00568]
[1766301319565,0.12247,88225.0,88217.0,0.01701568]
[1766301319765,0.12247,88225.0,88218.0,0.00568]
[1766301321869,0.121032,88225.0,88218.0,0.00568]
[1766301337753,0.11879,88224.0,88218.0,0.00513]
[1766301337968,0.11879,88223.0,88218.0,0.00513]
[1766301339255,0.01133568,88217.0,88200.0,4.85741929]
[1766301339454,0.11879,88212.0,88201.0,0.00568]
[1766301339769,0.10034122,88212.0,88202.0,0.04540217]
[1766301339967,0.10034122,88212.0,88203.0,0.01133748]
[1766301340271,0.10034122,88212.0,88205.0,0.01133722]
[1766301340618,0.09979222,88212.0,88203.0,0.01133748]
[1766301340757,0.09979222,88212.0,88204.0,0.01701735]
[1766301340951,0.09979222,88212.0,88205.0,0.01701722]
[1766301341176,0.09979222,88212.0,88205.0,0.01133722]
[1766301341376,0.09979222,88212.0,88206.0,0.00568]
[1766301341594,0.09979222,88212.0,88207.0,0.00568]
[1766301341804,0.09979222,88212.0,88205.0,0.01133722]
[1766301342240,0.09979222,88212.0,88206.0,0.00568]
[1766301342389,0.09979222,88212.0,88207.0,0.00568]
[1766301342769,0.09979222,88212.0,88208.0,0.00568]
[1766301342939,0.09979222,88212.0,88209.0,0.00568]
[1766301343149,0.09979222,88212.0,88202.0,0.01133761]
[1766301343393,0.09979222,88212.0,88203.0,0.01133748]
[1766301343597,0.09979222,88212.0,88203.0,0.00568]
[1766301343728,0.09979222,88212.0,88204.0,0.00568]
[1766301343928,0.09979222,88212.0,88205.0,0.00568]
[1766301344140,0.09979222,88212.0,88204.0,0.01133735]
[1766301344334,0.09979222,88212.0,88205.0,0.00568]
[1766301344557,0.09979222,88212.0,88206.0,0.00568]
[1766301355170,0.09979222,88212.0,88207.0,0.00568]
[1766301356557,0.01133722,88216.0,88209.0,0.01133671]
[1766301356935,0.0085216,88216.0,88209.0,0.01133671]
[1766301357220,0.00674299,88216.0,88212.0,0.01133632]
[1766301357443,0.00568,88222.0,88214.0,0.01133606]
[1766301357661,0.01133684,88220.0,88213.0,0.01133619]
[1766301357844,0.00568,88222.0,88213.0,0.01133619]
[1766301358125,0.03974456,88222.0,88213.0,0.01133619]
[1766301358356,0.03974456,88222.0,88213.0,0.06801671]
[1766301358566,0.00568,88222.0,88216.0,0.01133581]
[1766301358970,0.00568,88222.0,88215.0,0.01133594]
[1766301359694,0.03406456,88224.0,88216.0,0.01133581]
[1766301359820,0.00568,88224.0,88215.0,0.01133594]
[1766301360272,0.00568,88224.0,88216.0,0.01133581]
[1766301360470,0.00568,88224.0,88214.0,0.32850017]
[1766301360789,0.00568,88224.0,88215.0,0.01133594]
[1766301361010,0.00568,88224.0,88214.0,0.32850017]
[1766301361588,0.00568,88224.0,88214.0,0.31716411]
[1766301361768,0.00568,88224.0,88214.0,0.32850017]
[1766301361970,0.00568,88224.0,88214.0,0.31716411]
[1766301362353,0.00568,88224.0,88214.0,0.32850017]
[1766301362556,0.00568,88224.0,88214.0,0.31716411]
[1766301362760,0.00568,88224.0,88213.0,0.0340622]
[1766301363333,0.00568,88224.0,88213.0,0.04539839]
[1766301366026,0.00568,88224.0,88214.0,0.31716411]
[1766301366378,0.00568,88224.0,88213.0,0.04539839]
[1766301366582,0.12758,88224.0,88213.0,0.04539839]
[1766301367365,0.12758,88224.0,88213.0,0.01133619]
[1766301367519,0.12758,88224.0,88212.0,0.01701632]
[1766301367724,0.12758,88224.0,88214.0,0.0340622]
[1766301368349,0.12758,88224.0,88214.0,0.0335132]